lending/lending_fUSD_20240131
["ID","MTS","AMOUNT","RATE_DAILY","PERIOD"]
[313090562,1706736679036,-1000.0,0.000425,2]
[313090563,1706736679049,-150.36800339,0.00042508,30]
[313090564,1706736679058,-175.00563788,0.00042555,30]
[313090565,1706736679068,-158.56994627,0.00042563,30]
[313090566,1706736679077,-150.0,0.00042567,30]
[313090567,1706736679087,-175.00563788,0.00042582,30]
[313090568,1706736679097,-1593.31,0.000426,7]
[313090569,1706736679106,-783.56758742,0.00042606,30]
[313090570,1706736679116,-150.0,0.00042608,30]
[313090571,1706736679125,-163.50109364,0.00042658,60]
[313090572,1706736679135,-783.56758742,0.00042679,30]
[313090573,1706736679145,-50000.0,0.00042693,30]
[313090574,1706736679154,-1078.59396166,0.00042723,30]
[313090575,1706736679164,-1078.59396166,0.00042733,30]
[313090576,1706736679173,-1731.50223663,0.00042739,5]
[313090577,1706736679182,-1460.59,0.00042739,5]
[313090578,1706736679192,-553.49,0.00042739,5]
[313090579,1706736679214,-500.0,0.00042739,2]
[313090580,1706736679233,-625.93,0.00042739,5]
[313090581,1706736679252,-500.0,0.00042739,5]
[313090582,1706736679273,-500.0,0.00042739,2]
[313090583,1706736679289,-500.0,0.00042739,5]
[313090584,1706736679306,-159.96120369,0.00042739,5]
[313090585,1706736679324,-897.14,0.00042739,2]
[313090586,1706736679341,-500.0,0.00042739,5]
[313090587,1706736679360,-500.0,0.00042739,2]
[313090588,1706736679377,-500.0,0.00042739,5]
[313090589,1706736679397,-500.0,0.00042739,5]
[313090590,1706736679414,-1000.0,0.00042739,7]
[313090591,1706736679426,-500.0,0.00042739,5]
[313090592,1706736679442,-500.0,0.00042739,5]
[313090593,1706736679459,-500.0,0.00042739,5]
[313090594,1706736679474,-500.0,0.00042739,5]
[313090595,1706736679488,-500.0,0.00042739,5]
[313090596,1706736679503,-1613.63,0.00042739,7]
[313090597,1706736679527,-827.79,0.00042739,2]
[313090598,1706736679552,-500.0,0.00042739,5]
[313090599,1706736679575,-500.0,0.00042739,5]
[313090600,1706736679594,-518.83,0.00042739,5]
[313090601,1706736679612,-667.59,0.00042739,5]
[313090602,1706736679630,-500.0,0.00042739,5]
[313090603,1706736679647,-500.0,0.00042739,5]
[313090604,1706736679665,-851.16,0.00042739,5]
[313090605,1706736679681,-500.0,0.00042739,5]
[313090606,1706736679697,-500.0,0.00042739,2]
[313090607,1706736679714,-500.0,0.00042739,5]
[313090608,1706736679729,-500.0,0.00042739,5]
[313090609,1706736679745,-500.0,0.00042739,5]
[313090610,1706736679761,-500.0,0.00042739,5]
[313090611,1706736679777,-500.0,0.00042739,5]
[313090612,1706736679792,-500.0,0.00042739,5]
[313090613,1706736679807,-500.0,0.00042739,5]
[313090614,1706736679822,-193.21104524,0.00042739,5]
[313090615,1706736679838,-500.0,0.00042739,5]
[313090616,1706736679854,-500.0,0.00042739,5]
[313090617,1706736679870,-500.0,0.00042739,5]
[313090618,1706736679885,-500.0,0.00042739,5]
[313090619,1706736679900,-500.0,0.00042739,5]
[313090620,1706736679916,-1208.58,0.00042739,5]
[313090621,1706736679932,-500.0,0.00042739,5]
[313090622,1706736679948,-530.21661232,0.00042739,21]
[313090623,1706736679964,-500.0,0.00042739,5]
[313090624,1706736679978,-500.0,0.00042739,5]
[313090625,1706736679994,-500.0,0.00042739,5]
[313090626,1706736680008,-500.0,0.00042739,5]
[313090627,1706736680025,-500.0,0.00042739,5]
[313090628,1706736680040,-500.0,0.00042739,5]
[313090629,1706736680057,-583.31,0.00042739,5]
[313090630,1706736680071,-500.0,0.00042739,5]
[313090631,1706736680087,-500.0,0.00042739,5]
[313090632,1706736680103,-1528.21,0.00042739,5]
[313090633,1706736680119,-515.39,0.00042739,5]
[313090634,1706736680135,-500.0,0.00042739,5]
[313090635,1706736680150,-500.0,0.00042739,5]
[313090636,1706736680166,-680.82,0.00042739,5]
[313090637,1706736680181,-500.0,0.00042739,5]
[313090638,1706736680200,-585.71,0.00042739,2]
[313090639,1706736680216,-500.0,0.00042739,5]
[313090640,1706736680232,-500.0,0.00042739,5]
[313090641,1706736680248,-573.78,0.00042739,5]
[313090642,1706736680265,-500.0,0.00042739,5]
[313090643,1706736680282,-3275.23,0.00042739,5]
[313090644,1706736680299,-500.0,0.00042739,5]
[313090645,1706736680316,-500.0,0.00042739,5]
[313090646,1706736680333,-500.0,0.00042739,5]
[313090647,1706736680350,-500.0,0.00042739,5]
[313090648,1706736680366,-1261.55,0.00042739,5]
[313090649,1706736680381,-187.27,0.00042739,5]
[313090650,1706736680397,-1056.79,0.00042739,5]
[313090651,1706736680411,-794.7,0.00042739,5]
[313090652,1706736680427,-5284.67,0.00042739,5]
[313090653,1706736680442,-500.0,0.00042739,5]
[313090654,1706736680458,-672.7,0.00042739,5]
[313090655,1706736680474,-1126.15,0.00042739,5]
[313090656,1706736680490,-500.0,0.00042739,5]
[313090657,1706736680506,-1000.0,0.00042739,7]
[313090658,1706736680521,-500.0,0.00042739,5]
[313090659,1706736680536,-584.9,0.00042739,5]
[313090660,1706736680557,-651.12,0.00042739,5]
[313090661,1706736680747,-507.27,0.00042739,5]
[313090662,1706736680757,-500.0,0.00042739,5]
[313090663,1706736680767,-1698.73,0.00042739,5]
[313090664,1706736680776,-500.0,0.00042739,5]
[313090665,1706736680785,-608.75,0.00042739,5]
[313090666,1706736680799,-500.0,0.00042739,5]
[313090667,1706736680808,-605.81,0.00042739,5]
[313090668,1706736680818,-678.92,0.00042739,5]
[313090669,1706736680828,-977.32,0.00042739,5]
[313090670,1706736680838,-1315.53,0.00042739,5]
[313090671,1706736680848,-1687.18,0.00042739,5]
[313090672,1706736680858,-500.0,0.00042739,5]
[313090673,1706736680868,-281.6713977,0.00042739,5]
[313090674,1706736680878,-500.0,0.00042739,5]
[313090675,1706736680888,-500.0,0.00042739,5]
[313090676,1706736680898,-1511.96,0.00042739,5]
[313090677,1706736680907,-500.0,0.00042739,5]
[313090678,1706736680917,-1466.44,0.00042739,5]
[313090679,1706736680928,-500.0,0.00042739,5]
[313090680,1706736680938,-1262.64,0.00042739,5]
[313090681,1706736680949,-1686.6,0.00042739,5]
[313090682,1706736680959,-1759.87,0.00042739,5]
[313090683,1706736680969,-500.0,0.00042739,5]
[313090684,1706736680979,-796.91,0.00042739,5]
[313090685,1706736680989,-500.0,0.00042739,5]
[313090686,1706736680998,-500.0,0.00042739,5]
[313090687,1706736681008,-500.0,0.00042739,10]
[313090688,1706736681018,-500.0,0.00042739,5]
[313090689,1706736681028,-529.4,0.00042739,5]
[313090690,1706736681037,-662.47,0.00042739,5]
[313090691,1706736681050,-3011.45,0.00042739,5]
[313090692,1706736681060,-902.1,0.00042739,5]
[313090693,1706736681070,-500.0,0.00042739,5]
[313090694,1706736681081,-812.18,0.00042739,5]
[313090695,1706736681091,-500.0,0.00042739,5]
[313090696,1706736681101,-742.82,0.00042739,5]
[313090697,1706736681111,-1136.51,0.00042739,5]
[313090698,1706736681121,-928.46,0.00042739,5]
[313090699,1706736681131,-638.32,0.00042739,5]
[313090700,1706736681139,-914.58,0.00042739,5]
[313090701,1706736681149,-500.0,0.00042739,5]
[313090702,1706736681159,-1957.6,0.00042739,5]
[313090703,1706736681169,-500.0,0.00042739,5]
[313090704,1706736681178,-1785.32,0.00042739,5]
[313090705,1706736681188,-500.0,0.00042739,5]
[313090706,1706736681199,-729.97,0.00042739,5]
[313090707,1706736681211,-652.82,0.00042739,5]
[313090708,1706736681221,-963.87,0.00042739,5]
[313090709,1706736681230,-500.0,0.00042739,5]
[313090710,1706736681239,-500.0,0.00042739,5]
[313090711,1706736681251,-587.33,0.00042739,5]
[313090712,1706736681260,-540.51,0.00042739,5]
[313090713,1706736681270,-1505.83,0.00042739,5]
[313090714,1706736681279,-1344.23,0.00042739,5]
[313090715,1706736681292,-715.02,0.00042739,5]
[313090716,1706736681302,-823.24,0.00042739,5]
[313090717,1706736681311,-3815.84,0.00042739,5]
[313090718,1706736681321,-500.0,0.00042739,5]
[313090719,1706736681331,-500.0,0.00042739,5]
[313090720,1706736681341,-533.75,0.00042739,5]
[313090721,1706736681351,-500.0,0.00042739,5]
[313090722,1706736681361,-601.94,0.00042739,5]
[313090723,1706736681370,-2237.3,0.00042739,5]
[313090724,1706736681381,-789.41,0.00042739,5]
[313090725,1706736681391,-500.0,0.00042739,5]
[313090726,1706736681401,-651.31,0.00042739,5]
[313090727,1706736681411,-719.21,0.00042739,5]
[313090728,1706736681421,-1657.29,0.00042739,5]
[313090729,1706736681431,-500.0,0.00042739,5]
[313090730,1706736681441,-812.12,0.00042739,5]
[313090731,1706736681451,-1780.38,0.00042739,5]
[313090732,1706736681460,-500.0,0.00042739,5]
[313090733,1706736681469,-500.0,0.00042739,5]
[313090734,1706736681479,-500.0,0.00042739,5]
[313090735,1706736681488,-652.83,0.00042739,5]
[313090736,1706736681498,-500.0,0.00042739,5]
[313090737,1706736681507,-791.3,0.00042739,5]
[313090738,1706736681517,-849.04,0.00042739,5]
[313090739,1706736681527,-1524.13,0.00042739,5]
[313090740,1706736681537,-2731.97,0.00042739,5]
[313090741,1706736681549,-1537.1,0.00042739,5]
[313090742,1706736681559,-571.63,0.00042739,5]
[313090743,1706736681569,-500.0,0.00042739,5]
[313090744,1706736681579,-640.29,0.00042739,5]
[313090745,1706736681591,-500.0,0.00042739,5]
[313090746,1706736681601,-500.0,0.00042739,5]
[313090747,1706736681611,-700.08,0.00042739,5]
[313090748,1706736681621,-20006.34,0.00042739,5]
[313090749,1706736681631,-726.47,0.00042739,5]
[313090750,1706736681641,-510.24,0.00042739,5]
[313090751,1706736681652,-500.0,0.00042739,5]
[313090752,1706736681662,-948.65,0.00042739,5]
[313090753,1706736681672,-800.64,0.00042739,5]
[313090754,1706736681683,-581.17,0.00042739,5]
[313090755,1706736681693,-500.0,0.00042739,5]
[313090756,1706736681702,-500.0,0.00042739,5]
[313090757,1706736681712,-500.0,0.00042739,5]
[313090758,1706736681722,-567.51,0.00042739,5]
[313090759,1706736681732,-500.0,0.00042739,5]
[313090760,1706736681743,-500.0,0.00042739,5]
[313090761,1706736681753,-1484.95,0.00042739,5]
[313090762,1706736681762,-1619.55,0.00042739,5]
[313090763,1706736681771,-500.0,0.00042739,5]
[313090764,1706736681781,-604.26,0.00042739,5]
[313090765,1706736681791,-791.85,0.00042739,5]
[313090766,1706736681801,-679.29,0.00042739,2]
[313090767,1706736681811,-862.32,0.00042739,5]
[313090768,1706736681822,-335.32045049,0.00042739,5]
[313090769,1706736681832,-3247.43,0.00042739,5]
[313090770,1706736681842,-2628.35,0.00042739,5]
[313090771,1706736681851,-1000.23,0.00042739,5]
[313090772,1706736681861,-500.0,0.00042739,5]
[313090773,1706736681872,-500.0,0.00042739,5]
[313090774,1706736681881,-1155.57,0.00042739,5]
[313090775,1706736681891,-678.92,0.00042739,5]
[313090776,1706736681900,-500.0,0.00042739,5]
[313090777,1706736681909,-1333.1,0.00042739,5]
[313090778,1706736681919,-1036.02,0.00042739,5]
[313090779,1706736681929,-509.62,0.00042739,5]
[313090780,1706736681938,-500.0,0.00042739,5]
[313090781,1706736681947,-500.0,0.00042739,5]
[313090782,1706736681956,-1000.0,0.0004274,6]
[313090783,1706736681965,-723.0,0.0004274,6]
[313090784,1706736681975,-159.84839715,0.00042748,30]
[313090785,1706736681984,-1500.65130064,0.00042754,30]
[313090786,1706736681994,-1500.65130064,0.00042763,30]
[313090787,1706736682004,-150.0,0.00042769,30]
[313090788,1706736682014,-500.0,0.00042782,14]
[313090789,1706736682023,-749.09410903,0.00042794,15]
[313090790,1706736682033,-150.36800339,0.00042797,30]
[313090791,1706736682046,-151.0201,0.00042798,19]
[313090792,1706736682055,-750.6,0.000428,15]
[313090793,1706736682065,-157.67685169,0.00042812,30]
[313090794,1706736682075,-1500.65130064,0.00042833,30]
[313090795,1706736682084,-741.207672,0.000429,32]
[313090796,1706736682093,-150.0,0.00042904,30]
[313090797,1706736682103,-163.50109364,0.00042904,60]
[313090798,1706736682112,-443.0,0.00042941,2]
[313090799,1706736682121,-150.0,0.00042971,30]
[313090800,1706736682130,-200.0,0.00042987,32]
[313090801,1706736682139,-3906.33131402,0.00042991,5]
[313090802,1706736682148,-100000.0,0.00043,23]
[313090803,1706736682156,-2103.90734458,0.00043,8]
[313090804,1706736682166,-1000.0,0.00043,4]
[313090805,1706736682175,-5000.0,0.00043,30]
[313090806,1706736682185,-600.0,0.00043,44]
[313090807,1706736682194,-1500.0,0.00043,30]
[313090808,1706736682204,-800.0,0.00043,3]
[313090809,1706736682213,-1174.703125,0.00043,2]
[313090810,1706736682223,-150.0,0.00043,18]
[313090811,1706736682234,-1500.65130064,0.0004304,30]
[313090812,1706736682243,-175.00563788,0.00043064,30]
[313090813,1706736682252,-1500.65130064,0.00043065,30]
[313090814,1706736682266,-604.0,0.00043073,7]
[313090815,1706736682275,-1078.59396166,0.00043086,30]
[313090816,1706736682286,-150.0,0.00043115,30]
[313090817,1706736682300,-175.00563788,0.00043144,30]
[313090818,1706736682311,-163.50109364,0.00043151,60]
[313090819,1706736682321,-150.0,0.00043173,30]
[313090820,1706736682331,-1078.59396166,0.00043178,30]
[313090821,1706736682341,-152.61839701,0.00043189,30]
[313090822,1706736682351,-1792.0,0.0004319,2]
[313090823,1706736682362,-1826.0,0.0004319,2]
[313090824,1706736682372,-151.0201,0.00043198,20]
[313090825,1706736682383,-951.0,0.000432,7]
[313090826,1706736682393,-5800.0,0.00043245,2]
[313090827,1706736682403,-5800.0,0.00043253,2]
[313090828,1706736682414,-150.0,0.00043259,2]
[313090829,1706736682424,-5800.0,0.00043262,2]
[313090830,1706736682438,-5800.0,0.00043262,2]
[313090831,1706736682449,-5800.0,0.0004327,2]
[313090832,1706736682459,-5800.0,0.0004327,2]
[313090833,1706736682470,-150.0,0.00043273,30]
[313090834,1706736682480,-5800.0,0.00043279,2]
[313090835,1706736682489,-5800.0,0.00043279,2]
[313090836,1706736682500,-5800.0,0.00043287,2]
[313090837,1706736682510,-1460.59,0.00043287,5]
[313090838,1706736682520,-553.49,0.00043287,5]
[313090839,1706736682530,-500.0,0.00043287,2]
[313090840,1706736682539,-625.93,0.00043287,5]
[313090841,1706736682555,-5800.0,0.00043287,2]
[313090842,1706736682565,-500.0,0.00043287,5]
[313090843,1706736682575,-500.0,0.00043287,2]
[313090844,1706736682585,-500.0,0.00043287,5]
[313090845,1706736682596,-897.14,0.00043287,2]
[313090846,1706736682607,-500.0,0.00043287,5]
[313090847,1706736682617,-500.0,0.00043287,2]
[313090848,1706736682626,-500.0,0.00043287,5]
[313090849,1706736682636,-500.0,0.00043287,5]
[313090850,1706736682646,-1000.0,0.00043287,7]
[313090851,1706736682656,-500.0,0.00043287,5]
[313090852,1706736682666,-500.0,0.00043287,5]
[313090853,1706736682676,-500.0,0.00043287,5]
[313090854,1706736682686,-500.0,0.00043287,5]
[313090855,1706736682696,-500.0,0.00043287,5]
[313090856,1706736682706,-1613.63,0.00043287,7]
[313090857,1706736682716,-827.79,0.00043287,2]
[313090858,1706736682726,-500.0,0.00043287,5]
[313090859,1706736682735,-500.0,0.00043287,5]
[313090860,1706736682746,-518.83,0.00043287,5]
[313090861,1706736682756,-667.59,0.00043287,5]
[313090862,1706736682765,-500.0,0.00043287,5]
[313090863,1706736682775,-500.0,0.00043287,5]
[313090864,1706736682784,-851.16,0.00043287,5]
[313090865,1706736682796,-500.0,0.00043287,5]
[313090866,1706736682806,-500.0,0.00043287,2]
[313090867,1706736682815,-590.16192924,0.00043287,5]
[313090868,1706736682824,-500.0,0.00043287,5]
[313090869,1706736682833,-500.0,0.00043287,5]
[313090870,1706736682842,-500.0,0.00043287,5]
[313090871,1706736682851,-500.0,0.00043287,5]
[313090872,1706736682860,-500.0,0.00043287,5]
[313090873,1706736682869,-500.0,0.00043287,5]
[313090874,1706736682879,-500.0,0.00043287,5]
[313090875,1706736682888,-500.0,0.00043287,5]
[313090876,1706736682897,-500.0,0.00043287,5]
[313090877,1706736682907,-500.0,0.00043287,5]
[313090878,1706736682916,-492.53838758,0.00043287,5]
[313090879,1706736682925,-1208.58,0.00043287,5]
[313090880,1706736682936,-500.0,0.00043287,5]
[313090881,1706736682946,-500.0,0.00043287,5]
[313090882,1706736682957,-500.0,0.00043287,5]
[313090883,1706736682967,-500.0,0.00043287,5]
[313090884,1706736682976,-500.0,0.00043287,5]
[313090885,1706736682985,-500.0,0.00043287,5]
[313090886,1706736682995,-577.71055387,0.00043287,5]
[313090887,1706736683004,-583.31,0.00043287,5]
[313090888,1706736683013,-500.0,0.00043287,5]
[313090889,1706736683022,-500.0,0.00043287,5]
[313090890,1706736683031,-1528.21,0.00043287,5]
[313090891,1706736683045,-515.39,0.00043287,5]
[313090892,1706736683054,-500.0,0.00043287,5]
[313090893,1706736683063,-500.0,0.00043287,5]
[313090894,1706736683073,-680.82,0.00043287,5]
[313090895,1706736683082,-500.0,0.00043287,5]
[313090896,1706736683091,-585.71,0.00043287,2]
[313090897,1706736683100,-500.0,0.00043287,5]
[313090898,1706736683109,-500.0,0.00043287,5]
[313090899,1706736683252,-573.78,0.00043287,5]
[313090900,1706736683262,-500.0,0.00043287,5]
[313090901,1706736683271,-3275.23,0.00043287,5]
[313090902,1706736683280,-500.0,0.00043287,5]
[313090903,1706736683289,-500.0,0.00043287,5]
[313090904,1706736683302,-500.0,0.00043287,5]
[313090905,1706736683311,-500.0,0.00043287,5]
[313090906,1706736683322,-1261.55,0.00043287,5]
[313090907,1706736683331,-1056.79,0.00043287,5]
[313090908,1706736683340,-794.7,0.00043287,5]
[313090909,1706736683349,-5284.67,0.00043287,5]
[313090910,1706736683358,-500.0,0.00043287,5]
[313090911,1706736683367,-672.7,0.00043287,5]
[313090912,1706736683377,-1126.15,0.00043287,5]
[313090913,1706736683388,-500.0,0.00043287,5]
[313090914,1706736683398,-1000.0,0.00043287,7]
[313090915,1706736683407,-500.0,0.00043287,5]
[313090916,1706736683417,-584.9,0.00043287,5]
[313090917,1706736683426,-507.27,0.00043287,5]
[313090918,1706736683435,-651.12,0.00043287,5]
[313090919,1706736683444,-522.2410698,0.00043287,5]
[313090920,1706736683453,-1698.73,0.00043287,5]
[313090921,1706736683462,-500.0,0.00043287,5]
[313090922,1706736683472,-608.75,0.00043287,5]
[313090923,1706736683482,-392.48233638,0.00043287,5]
[313090924,1706736683491,-605.81,0.00043287,5]
[313090925,1706736683501,-678.92,0.00043287,5]
[313090926,1706736683511,-1687.18,0.00043287,5]
[313090927,1706736683521,-1315.53,0.00043287,5]
[313090928,1706736683532,-500.0,0.00043287,5]
[313090929,1706736683543,-500.0,0.00043287,5]
[313090930,1706736683552,-327.71893431,0.00043287,5]
[313090931,1706736683561,-1511.96,0.00043287,5]
[313090932,1706736683571,-500.0,0.00043287,5]
[313090933,1706736683580,-1466.44,0.00043287,5]
[313090934,1706736683591,-500.0,0.00043287,5]
[313090935,1706736683601,-1262.64,0.00043287,5]
[313090936,1706736683610,-1686.6,0.00043287,5]
[313090937,1706736683620,-1759.87,0.00043287,5]
[313090938,1706736683629,-500.0,0.00043287,5]
[313090939,1706736683638,-796.91,0.00043287,5]
[313090940,1706736683648,-500.0,0.00043287,5]
[313090941,1706736683657,-500.0,0.00043287,5]
[313090942,1706736683666,-500.0,0.00043287,10]
[313090943,1706736683676,-500.0,0.00043287,5]
[313090944,1706736683685,-529.4,0.00043287,5]
[313090945,1706736683694,-662.47,0.00043287,5]
[313090946,1706736683703,-3011.45,0.00043287,5]
[313090947,1706736683712,-902.1,0.00043287,5]
[313090948,1706736683722,-500.0,0.00043287,5]
[313090949,1706736683732,-500.0,0.00043287,5]
[313090950,1706736683742,-812.18,0.00043287,5]
[313090951,1706736683752,-742.82,0.00043287,5]
[313090952,1706736683762,-1136.51,0.00043287,5]
[313090953,1706736683771,-928.46,0.00043287,5]
[313090954,1706736683781,-638.32,0.00043287,5]
[313090955,1706736683793,-977.32,0.00043287,5]
[313090956,1706736683802,-914.58,0.00043287,5]
[313090957,1706736683812,-500.0,0.00043287,5]
[313090958,1706736683822,-1957.6,0.00043287,5]
[313090959,1706736683832,-500.0,0.00043287,5]
[313090960,1706736683841,-1785.32,0.00043287,5]
[313090961,1706736683851,-500.0,0.00043287,5]
[313090962,1706736683861,-729.97,0.00043287,5]
[313090963,1706736683870,-652.82,0.00043287,5]
[313090964,1706736683880,-963.87,0.00043287,5]
[313090965,1706736683890,-500.0,0.00043287,5]
[313090966,1706736683900,-500.0,0.00043287,5]
[313090967,1706736683910,-587.33,0.00043287,5]
[313090968,1706736683919,-540.51,0.00043287,5]
[313090969,1706736683928,-1505.83,0.00043287,5]
[313090970,1706736683938,-1344.23,0.00043287,5]
[313090971,1706736683948,-715.02,0.00043287,5]
[313090972,1706736683958,-823.24,0.00043287,5]
[313090973,1706736683968,-3815.84,0.00043287,5]
[313090974,1706736683977,-500.0,0.00043287,5]
[313090975,1706736683986,-500.0,0.00043287,5]
[313090976,1706736683995,-533.75,0.00043287,5]
[313090977,1706736684005,-500.0,0.00043287,5]
[313090978,1706736684014,-601.94,0.00043287,5]
[313090979,1706736684024,-2237.3,0.00043287,5]
[313090980,1706736684034,-789.41,0.00043287,5]
[313090981,1706736684046,-500.0,0.00043287,5]
[313090982,1706736684055,-651.31,0.00043287,5]
[313090983,1706736684065,-719.21,0.00043287,5]
[313090984,1706736684075,-1657.29,0.00043287,5]
[313090985,1706736684084,-500.0,0.00043287,5]
[313090986,1706736684094,-812.12,0.00043287,5]
[313090987,1706736684104,-1780.38,0.00043287,5]
[313090988,1706736684114,-500.0,0.00043287,5]
[313090989,1706736684123,-500.0,0.00043287,5]
[313090990,1706736684134,-500.0,0.00043287,5]
[313090991,1706736684144,-652.83,0.00043287,5]
[313090992,1706736684154,-500.0,0.00043287,5]
[313090993,1706736684164,-791.3,0.00043287,5]
[313090994,1706736684173,-849.04,0.00043287,5]
[313090995,1706736684183,-1524.13,0.00043287,5]
[313090996,1706736684193,-2731.97,0.00043287,5]
[313090997,1706736684205,-1537.1,0.00043287,5]
[313090998,1706736684215,-571.63,0.00043287,5]
[313090999,1706736684225,-500.0,0.00043287,5]
[313091000,1706736684237,-640.29,0.00043287,5]
[313091001,1706736684247,-500.0,0.00043287,5]
[313091002,1706736684258,-500.0,0.00043287,5]
[313091003,1706736684268,-700.08,0.00043287,5]
[313091004,1706736684278,-20006.34,0.00043287,5]
[313091005,1706736684290,-726.47,0.00043287,5]
[313091006,1706736684310,-510.24,0.00043287,5]
[313091007,1706736684322,-408.21148392,0.00043287,5]
[313091008,1706736684332,-948.65,0.00043287,5]
[313091009,1706736684342,-800.64,0.00043287,5]
[313091010,1706736684352,-581.17,0.00043287,5]
[313091011,1706736684362,-500.0,0.00043287,5]
[313091012,1706736684371,-500.0,0.00043287,5]
[313091013,1706736684381,-500.0,0.00043287,5]
[313091014,1706736684390,-567.51,0.00043287,5]
[313091015,1706736684400,-590.33769913,0.00043287,5]
[313091016,1706736684410,-500.0,0.00043287,5]
[313091017,1706736684419,-1484.95,0.00043287,5]
[313091018,1706736684428,-1619.55,0.00043287,5]
[313091019,1706736684437,-500.0,0.00043287,5]
[313091020,1706736684447,-604.26,0.00043287,5]
[313091021,1706736684456,-791.85,0.00043287,5]
[313091022,1706736684465,-679.29,0.00043287,2]
[313091023,1706736684475,-862.32,0.00043287,5]
[313091024,1706736684484,-3247.43,0.00043287,5]
[313091025,1706736684493,-2628.35,0.00043287,5]
[313091026,1706736684502,-1000.23,0.00043287,5]
[313091027,1706736684512,-500.0,0.00043287,5]
[313091028,1706736684521,-500.0,0.00043287,5]
[313091029,1706736684531,-1155.57,0.00043287,5]
[313091030,1706736684541,-678.92,0.00043287,5]
[313091031,1706736684554,-500.0,0.00043287,5]
[313091032,1706736684564,-1333.1,0.00043287,5]
[313091033,1706736684573,-1036.02,0.00043287,5]
[313091034,1706736684582,-509.62,0.00043287,5]
[313091035,1706736684593,-500.0,0.00043287,5]
[313091036,1706736684602,-500.0,0.00043287,5]
[313091037,1706736684611,-150.36800339,0.00043288,30]
[313091038,1706736684620,-215.11315026,0.000433,30]
[313091039,1706736684628,-207.0,0.0004334,2]
[313091040,1706736684636,-210.0,0.0004334,2]
[313091041,1706736684646,-250.0,0.0004334,2]
[313091042,1706736684655,-1078.59396166,0.0004334,30]
[313091043,1706736684664,-1078.59396166,0.00043349,30]
[313091044,1706736684673,-1035.8983042,0.00043364,30]
[313091045,1706736684682,-163.50109364,0.0004337,60]
[313091046,1706736684691,-2179.0,0.00043373,48]
[313091047,1706736684701,-150.0,0.00043374,30]
[313091048,1706736684710,-2002.88,0.0004338,2]
[313091049,1706736684719,-152.61839701,0.00043434,30]
[313091050,1706736684728,-515.31378605,0.00043461,30]
[313091051,1706736684737,-783.56758742,0.0004347,30]
[313091052,1706736684746,-313.92,0.0004348,2]
[313091053,1706736684756,-2879.904,0.00043495,4]
[313091054,1706736684765,-2879.904,0.00043495,4]
[313091055,1706736684774,-2879.904,0.00043495,4]
[313091056,1706736684783,-2879.905,0.00043495,4]
[313091057,1706736684795,-2879.904,0.00043495,4]
[313091058,1706736684805,-150.0,0.00043495,30]
[313091059,1706736684814,-151.0201,0.00043498,20]
[313091060,1706736684824,-1000.17,0.000435,120]
[313091061,1706736684833,-500.0,0.00043519,14]